fUST/lending_fUST_20240612
["ID","MTS","AMOUNT","RATE_DAILY","PERIOD"]
[329249835,1718201452743,-217.41,0.00016986,2]
[329249837,1718201452754,-288.271004,0.00016986,2]
[329249839,1718201452766,-300.78578255,0.00016986,2]
[329249841,1718201452777,-288.271004,0.00016986,2]
[329249843,1718201452788,-576.65,0.00016986,2]
[329249845,1718201452798,-1701.47971,0.00016986,2]
[329249847,1718201452811,-500.0,0.00016986,2]
[329249849,1718201452827,-500.0,0.00016986,2]
[329249851,1718201452840,-1701.47971,0.00016986,2]
[329249853,1718201452852,-1048.66,0.00016986,2]
[329249855,1718201452863,-500.0,0.00016986,2]
[329249857,1718201452874,-500.0,0.00016986,2]
[329249859,1718201452885,-500.0,0.00016986,2]
[329249861,1718201452899,-319.4026,0.00016986,2]
[329249863,1718201452909,-922.1,0.00016986,2]
[329249865,1718201452921,-319.4026,0.00016986,2]
[329249867,1718201452934,-1158.98,0.00016986,2]
[329249869,1718201452946,-500.0,0.00016986,2]
[329249871,1718201452959,-160.34758777,0.00016986,2]
[329249873,1718201452970,-564.8,0.00016986,2]
[329249874,1718201452997,-211.100469,0.00016986,2]
[329249877,1718201453020,-211.100469,0.00016986,2]
[329249880,1718201453039,-211.100469,0.00016986,2]
[329249882,1718201453056,-211.100469,0.00016986,2]
[329249884,1718201453075,-759.205445,0.00016986,2]
[329249886,1718201453095,-759.205445,0.00016986,2]
[329249888,1718201453108,-759.205445,0.00016986,2]
[329249890,1718201453120,-759.205445,0.00016986,2]
[329249891,1718201453151,-926.29,0.00016986,2]
[329249892,1718201453162,-500.0,0.00016986,2]
[329249893,1718201453172,-500.0,0.00016986,2]
[329249896,1718201453198,-3265.365085,0.00016986,2]
[329249898,1718201453218,-2013.97,0.00016986,2]
[329249901,1718201453234,-3265.365085,0.00016986,2]
[329249903,1718201453246,-514.81433297,0.00016986,2]
[329249905,1718201453262,-3265.365085,0.00016986,2]
[329249907,1718201453278,-1200.82,0.00016986,2]
[329249909,1718201453294,-3265.365085,0.00016986,2]
[329249911,1718201453321,-151.0,0.00016986,2]
[329249913,1718201453342,-151.0,0.00016986,2]
[329249914,1718201453366,-1726.6,0.00016986,2]
[329249916,1718201453377,-2002.29,0.00016986,2]
[329249918,1718201453390,-151.0,0.00016986,2]
[329249920,1718201453403,-151.0,0.00016986,2]
[329249922,1718201453415,-500.0,0.00016986,2]
[329249924,1718201453429,-500.0,0.00016986,2]
[329249925,1718201453446,-500.0,0.00016986,2]
[329249927,1718201453468,-831.61,0.00016986,2]
[329249929,1718201453478,-1877.02,0.00016986,2]
[329249932,1718201453490,-500.0,0.00016986,2]
[329249933,1718201453502,-500.0,0.00016986,2]
[329249936,1718201453535,-369.51,0.00016986,2]
[329249943,1718201453659,-500.0,0.00016986,2]
[329249944,1718201453671,-461.10390316,0.00016986,2]
[329249946,1718201453685,-500.0,0.00016986,2]
[329249948,1718201453702,-500.0,0.00016986,2]
[329249950,1718201453764,-2116.775547,0.00016986,2]
[329249951,1718201453782,-2116.775547,0.00016986,2]
[329249953,1718201453794,-2116.775547,0.00016986,2]
[329249955,1718201453807,-2116.775547,0.00016986,2]
[329249957,1718201453824,-504.93859245,0.00016986,2]
[329249959,1718201453835,-500.0,0.00016986,2]
[329249961,1718201453845,-506.77970984,0.00016986,2]
[329249963,1718201453863,-500.0,0.00016986,2]
[329249965,1718201453881,-364.500917,0.00016986,2]
[329249967,1718201453895,-364.500917,0.00016986,2]
[329249969,1718201453906,-500.0,0.00016986,2]
[329249971,1718201453918,-364.500917,0.00016986,2]
[329249973,1718201453927,-364.500917,0.00016986,2]
[329249975,1718201453938,-500.0,0.00016986,2]
[329249977,1718201453948,-500.0,0.00016986,2]
[329249979,1718201453958,-5479.05,0.00016986,2]
[329249981,1718201453968,-151.0,0.00016986,2]
[329249983,1718201453979,-151.0,0.00016986,2]
[329249985,1718201453989,-1098.74,0.00016986,2]
[329249987,1718201454000,-155.00155002,0.00016986,2]
[329249989,1718201454010,-221.011629,0.00016986,2]
[329249991,1718201454021,-221.011629,0.00016986,2]
[329249993,1718201454038,-221.011629,0.00016986,2]
[329249995,1718201454050,-1208.47,0.00016986,2]
[329249997,1718201454061,-221.011629,0.00016986,2]
[329249999,1718201454074,-3618.05,0.00016986,2]
[329250001,1718201454086,-151.0,0.00016986,2]
[329250003,1718201454099,-161.481521,0.00016986,2]
[329250005,1718201454110,-500.0,0.00016986,2]
[329250007,1718201454121,-500.0,0.00016986,2]
[329250009,1718201454150,-500.0,0.00016986,2]
[329250011,1718201454160,-17386.73,0.00016986,2]
[329250013,1718201454173,-651.96,0.00016986,2]
[329250015,1718201454183,-500.0,0.00016986,2]
[329250017,1718201454195,-500.0,0.00016986,2]
[329250019,1718201454205,-4991.79437,0.00016986,2]
[329250021,1718201454215,-4991.79437,0.00016986,2]
[329250023,1718201454226,-785.77,0.00016986,2]
[329250024,1718201454243,-2595.72,0.00016986,2]
[329250026,1718201454254,-4991.79437,0.00016986,2]
[329250028,1718201454265,-4991.79437,0.00016986,2]
[329250031,1718201454276,-377.73,0.00016986,2]
[329250032,1718201454290,-211.99148,0.00016986,2]
[329250035,1718201454302,-211.99148,0.00016986,2]
[329250037,1718201454313,-211.99148,0.00016986,2]
[329250039,1718201454325,-1107.69609106,0.00016986,2]
[329250041,1718201454335,-211.99148,0.00016986,2]
[329250043,1718201454346,-1084.9,0.00016986,2]
[329250044,1718201454357,-520.07627658,0.00016986,2]
[329250046,1718201454369,-505.67910671,0.00016986,2]
[329250048,1718201454380,-500.0,0.00016986,2]
[329250051,1718201454398,-5855.68,0.00016986,2]
[329250052,1718201454409,-1729.02,0.00016986,2]
[329250054,1718201454421,-500.0,0.00016986,2]
[329250057,1718201454440,-2045.875243,0.00016986,2]
[329250059,1718201454451,-2045.875243,0.00016986,2]
[329250061,1718201454463,-6458.08,0.00016986,2]
[329250063,1718201454474,-2045.875243,0.00016986,2]
[329250065,1718201454496,-2045.875243,0.00016986,2]
[329250067,1718201454520,-8650.31,0.00016986,2]
[329250070,1718201454534,-500.0,0.00016986,2]
[329250071,1718201454546,-13863.06,0.00016986,2]
[329250074,1718201454559,-500.0,0.00016986,2]
[329250075,1718201454570,-929.6,0.00016986,2]
[329250077,1718201454588,-204.90786294,0.00016986,2]
[329250079,1718201454603,-500.0,0.00016986,2]
[329250081,1718201454614,-161.117024,0.00016986,2]
[329250083,1718201454624,-161.117024,0.00016986,2]
[329250085,1718201454636,-589.35,0.00016986,2]
[329250087,1718201454647,-1042.65,0.00016986,2]
[329250089,1718201454658,-500.0,0.00016986,2]
[329250091,1718201454668,-161.117024,0.00016986,2]
[329250092,1718201454679,-161.117024,0.00016986,2]
[329250093,1718201454689,-263.31,0.00016986,2]
[329250094,1718201454700,-500.0,0.00016986,2]
[329250095,1718201454713,-500.0,0.00016986,2]
[329250096,1718201454724,-500.0,0.00016986,2]
[329250097,1718201454767,-500.0,0.00016986,2]
[329250098,1718201454795,-151.0,0.00016986,2]
[329250099,1718201454807,-151.0,0.00016986,2]
[329250100,1718201454824,-500.0,0.00016986,2]
[329250101,1718201454835,-500.0,0.00016986,2]
[329250102,1718201454853,-500.0,0.00016986,2]
[329250105,1718201454870,-151.0,0.00016986,2]
[329250106,1718201454882,-163.271812,0.00016986,2]
[329250108,1718201454894,-151.0,0.00016986,2]
[329250110,1718201454909,-151.0,0.00016986,2]
[329250112,1718201454924,-606.52290073,0.00016986,2]
[329250114,1718201454944,-500.0,0.00016986,2]
[329250116,1718201454965,-500.0,0.00016986,2]
[329250118,1718201454977,-5000.0,0.00017,2]
[329250120,1718201455000,-6682.41,0.00017258,2]
[329250122,1718201455012,-500.0,0.00017258,2]
[329250124,1718201455027,-806.51,0.00017258,2]
[329250126,1718201455041,-151.0,0.00017259,2]
[329250128,1718201455053,-151.0,0.00017259,2]
[329250129,1718201455065,-151.0,0.00017259,2]
[329250131,1718201455079,-151.0,0.00017259,2]
[329250133,1718201455095,-151.0,0.00017259,2]
[329250135,1718201455106,-151.0,0.00017259,2]
[329250137,1718201455118,-151.0,0.00017259,2]
[329250139,1718201455150,-151.0,0.00017259,2]
[329250141,1718201455161,-151.0,0.00017259,2]
[329250143,1718201455171,-151.0,0.00017259,2]
[329250145,1718201455187,-151.0,0.00017259,2]
[329250147,1718201455198,-170.622398,0.00017259,2]
[329250149,1718201455211,-500.0,0.00017259,2]
[329250151,1718201455223,-500.0,0.00017259,2]
[329250153,1718201455234,-500.0,0.00017259,2]
[329250155,1718201455248,-151.0,0.00017259,2]
[329250157,1718201455260,-204.046159,0.00017259,2]
[329250159,1718201455272,-288.271004,0.00017259,2]
[329250161,1718201455285,-288.271004,0.00017259,2]
[329250163,1718201455298,-1701.47971,0.00017259,2]
[329250164,1718201455312,-1701.47971,0.00017259,2]
[329250166,1718201455323,-319.4026,0.00017259,2]
[329250168,1718201455334,-319.4026,0.00017259,2]
[329250170,1718201455345,-211.100469,0.00017259,2]
[329250172,1718201455356,-211.100469,0.00017259,2]
[329250174,1718201455367,-759.205445,0.00017259,2]
[329250176,1718201455377,-759.205445,0.00017259,2]
[329250178,1718201455391,-3265.365085,0.00017259,2]
[329250180,1718201455402,-3265.365085,0.00017259,2]
[329250182,1718201455413,-6682.41,0.00017259,2]
[329250184,1718201455431,-6682.41,0.00017259,2]
[329250186,1718201455443,-6682.41,0.00017259,2]
[329250188,1718201455455,-6682.41,0.00017259,2]
[329250190,1718201455473,-151.0,0.00017259,2]
[329250193,1718201455485,-151.0,0.00017259,2]
[329250195,1718201455512,-2116.775547,0.00017259,2]
[329250197,1718201455528,-2116.775547,0.00017259,2]
[329250199,1718201455539,-500.0,0.00017259,2]
[329250201,1718201455551,-500.0,0.00017259,2]
[329250203,1718201455562,-414.56704098,0.00017259,2]
[329250205,1718201455573,-364.500917,0.00017259,2]
[329250207,1718201455584,-364.500917,0.00017259,2]
[329250209,1718201455599,-151.0,0.00017259,2]
[329250211,1718201455638,-806.51,0.00017259,2]
[329250213,1718201455650,-806.51,0.00017259,2]
[329250215,1718201455663,-806.51,0.00017259,2]
[329250217,1718201455673,-806.51,0.00017259,2]
[329250219,1718201455685,-221.011629,0.00017259,2]
[329250221,1718201455696,-221.011629,0.00017259,2]
[329250223,1718201455707,-500.0,0.0001726,2]
[329250225,1718201455741,-500.0,0.0001726,2]
[329250227,1718201455771,-500.0,0.0001726,2]
[329250229,1718201455785,-500.0,0.0001726,2]
[329250231,1718201455801,-500.0,0.0001726,2]
[329250233,1718201455814,-554.63,0.0001726,4]
[329250235,1718201455826,-500.0,0.0001726,2]
[329250237,1718201455837,-151.0,0.0001726,2]
[329250239,1718201455848,-250.0,0.0001726,2]
[329250241,1718201455861,-161.154819,0.0001726,2]
[329250243,1718201455871,-500.0,0.0001726,2]
[329250245,1718201455882,-151.619067,0.0001726,2]
[329250247,1718201455894,-521.8,0.0001726,2]
[329250249,1718201455905,-500.0,0.0001726,2]
[329250251,1718201455918,-500.0,0.0001726,2]
[329250253,1718201455930,-555.158736,0.0001726,2]
[329250255,1718201455941,-555.158736,0.0001726,2]
[329250257,1718201455951,-500.0,0.0001726,2]
[329250259,1718201455962,-555.158736,0.0001726,2]
[329250261,1718201455973,-555.158736,0.0001726,2]
[329250263,1718201455984,-500.0,0.0001726,2]
[329250265,1718201455995,-500.0,0.0001726,2]
[329250267,1718201456006,-506.34432331,0.0001726,2]
[329250269,1718201456017,-263.08628553,0.0001726,2]
[329250271,1718201456028,-1227.917234,0.0001726,2]
[329250273,1718201456039,-1227.917234,0.0001726,2]
[329250275,1718201456050,-500.0,0.0001726,2]
[329250277,1718201456061,-901.64,0.0001726,2]
[329250279,1718201456072,-176.5077,0.0001726,2]
[329250281,1718201456082,-176.5077,0.0001726,2]
[329250283,1718201456093,-1227.917234,0.0001726,2]
[329250285,1718201456104,-542.58,0.0001726,2]
[329250287,1718201456115,-1227.917234,0.0001726,2]
[329250289,1718201456127,-176.5077,0.0001726,2]
[329250291,1718201456157,-176.5077,0.0001726,2]
[329250293,1718201456168,-549.95,0.0001726,2]
[329250294,1718201456178,-500.0,0.0001726,2]
[329250296,1718201456189,-500.0,0.0001726,2]
[329250298,1718201456199,-762.56,0.0001726,2]
[329250300,1718201456211,-512.16020118,0.0001726,2]
[329250302,1718201456221,-500.0,0.0001726,2]
[329250304,1718201456232,-500.0,0.0001726,2]
[329250306,1718201456243,-500.0,0.0001726,2]
[329250308,1718201456253,-500.0,0.0001726,2]
[329250310,1718201456264,-500.0,0.0001726,2]
[329250312,1718201456276,-151.0,0.0001726,2]
[329250314,1718201456291,-151.0,0.0001726,2]
[329250317,1718201456303,-500.0,0.0001726,2]
[329250318,1718201456315,-256.94135,0.0001726,2]
[329250320,1718201456330,-500.0,0.0001726,2]
[329250322,1718201456341,-256.94135,0.0001726,2]
[329250324,1718201456355,-256.94135,0.0001726,2]
[329250326,1718201456368,-570.16893092,0.0001726,2]
[329250328,1718201456379,-256.94135,0.0001726,2]
[329250330,1718201456391,-500.0,0.0001726,2]
[329250332,1718201456402,-636.0,0.0001726,2]
[329250334,1718201456412,-151.0,0.0001726,2]
[329250336,1718201456423,-500.0,0.0001726,2]
[329250338,1718201456439,-151.0,0.0001726,2]
[329250340,1718201456450,-500.0,0.0001726,2]
[329250342,1718201456461,-500.0,0.0001726,2]
[329250344,1718201456473,-151.0,0.0001726,2]
[329250346,1718201456483,-754.42,0.0001726,2]
[329250348,1718201456494,-500.0,0.0001726,2]
[329250350,1718201456506,-204.046159,0.0001726,2]
[329250352,1718201456517,-500.0,0.0001726,2]
[329250354,1718201456527,-505.76383393,0.0001726,2]
[329250356,1718201456538,-288.271004,0.0001726,2]
[329250358,1718201456548,-576.65,0.0001726,2]
[329250360,1718201456558,-288.271004,0.0001726,2]
[329250362,1718201456569,-1701.47971,0.0001726,2]
[329250363,1718201456581,-500.0,0.0001726,2]
[329250365,1718201456592,-500.0,0.0001726,2]
[329250367,1718201456602,-1701.47971,0.0001726,2]
[329250369,1718201456612,-1048.66,0.0001726,2]
[329250371,1718201456622,-491.66261187,0.0001726,2]
[329250373,1718201456633,-500.0,0.0001726,2]
[329250375,1718201456643,-500.0,0.0001726,2]
[329250377,1718201456654,-319.4026,0.0001726,2]
[329250379,1718201456667,-922.1,0.0001726,2]
[329250381,1718201456681,-319.4026,0.0001726,2]
[329250383,1718201456698,-1158.98,0.0001726,2]
[329250385,1718201456712,-163.95041223,0.0001726,2]
[329250387,1718201456724,-564.8,0.0001726,2]
[329250389,1718201456736,-211.100469,0.0001726,2]
[329250391,1718201456747,-211.100469,0.0001726,2]
[329250393,1718201456758,-211.100469,0.0001726,2]
[329250395,1718201456769,-211.100469,0.0001726,2]
[329250397,1718201456780,-759.205445,0.0001726,2]
[329250399,1718201456790,-759.205445,0.0001726,2]
[329250401,1718201456802,-759.205445,0.0001726,2]
[329250403,1718201456819,-759.205445,0.0001726,2]
[329250405,1718201456831,-926.29,0.0001726,2]
[329250407,1718201456841,-500.0,0.0001726,2]
[329250409,1718201456853,-252.4475168,0.0001726,2]
[329250410,1718201456864,-2013.97,0.0001726,2]
[329250412,1718201456878,-3265.365085,0.0001726,2]
[329250414,1718201456896,-3265.365085,0.0001726,2]
[329250416,1718201456907,-1200.82,0.0001726,2]
[329250419,1718201456922,-3265.365085,0.0001726,2]
[329250421,1718201456934,-3265.365085,0.0001726,2]
[329250423,1718201456946,-151.0,0.0001726,2]
[329250425,1718201456956,-151.0,0.0001726,2]
[329250437,1718201457073,-1726.6,0.0001726,2]
[329250439,1718201457087,-2002.29,0.0001726,2]
[329250441,1718201457097,-151.0,0.0001726,2]
[329250443,1718201457112,-151.0,0.0001726,2]
[329250446,1718201457129,-500.0,0.0001726,2]
[329250448,1718201457159,-500.0,0.0001726,2]
[329250450,1718201457170,-1877.02,0.0001726,2]
[329250452,1718201457181,-831.61,0.0001726,2]
[329250454,1718201457192,-500.0,0.0001726,2]
[329250456,1718201457202,-500.0,0.0001726,2]
[329250458,1718201457212,-500.0,0.0001726,2]
[329250460,1718201457223,-500.0,0.0001726,2]
[329250462,1718201457233,-500.0,0.0001726,2]
[329250464,1718201457244,-2116.775547,0.0001726,2]
[329250465,1718201457254,-2116.775547,0.0001726,2]
[329250467,1718201457264,-2116.775547,0.0001726,2]
[329250469,1718201457274,-2116.775547,0.0001726,2]
[329250472,1718201457289,-413.03018777,0.0001726,2]
[329250474,1718201457299,-500.0,0.0001726,2]
[329250476,1718201457310,-364.500917,0.0001726,2]
[329250478,1718201457320,-500.0,0.0001726,2]
[329250480,1718201457332,-364.500917,0.0001726,2]
[329250482,1718201457342,-364.500917,0.0001726,2]
[329250484,1718201457352,-364.500917,0.0001726,2]
[329250486,1718201457362,-500.0,0.0001726,2]
[329250487,1718201457374,-500.0,0.0001726,2]
[329250489,1718201457395,-5479.05,0.0001726,2]
[329250491,1718201457416,-151.0,0.0001726,2]
[329250493,1718201457427,-151.0,0.0001726,2]
[329250494,1718201457440,-1098.74,0.0001726,2]
[329250497,1718201457452,-221.011629,0.0001726,2]
[329250499,1718201457465,-221.011629,0.0001726,2]
[329250501,1718201457476,-3618.05,0.0001726,2]
[329250503,1718201457493,-1208.47,0.0001726,2]
[329250505,1718201457506,-221.011629,0.0001726,2]
[329250506,1718201457516,-221.011629,0.0001726,2]
[329250508,1718201457530,-500.0,0.0001726,2]
[329250510,1718201457541,-500.0,0.0001726,2]
[329250512,1718201457551,-17386.73,0.0001726,2]
[329250514,1718201457562,-651.96,0.0001726,2]
[329250516,1718201457574,-500.0,0.0001726,2]
[329250518,1718201457584,-500.0,0.0001726,2]
[329250520,1718201457596,-4991.79437,0.0001726,2]
[329250522,1718201457606,-785.77,0.0001726,2]
[329250524,1718201457616,-4991.79437,0.0001726,2]
[329250526,1718201457631,-2595.72,0.0001726,2]
[329250528,1718201457642,-4991.79437,0.0001726,2]
[329250530,1718201457652,-4991.79437,0.0001726,2]
[329250532,1718201457671,-211.99148,0.0001726,2]
[329250534,1718201457682,-211.99148,0.0001726,2]
[329250536,1718201457694,-211.99148,0.0001726,2]
[329250538,1718201457705,-211.99148,0.0001726,2]
[329250540,1718201457715,-1084.9,0.0001726,2]
[329250542,1718201457726,-500.0,0.0001726,2]
[329250543,1718201457742,-5855.68,0.0001726,2]
[329250545,1718201457753,-1729.02,0.0001726,2]
[329250547,1718201457764,-500.0,0.0001726,2]
[329250548,1718201457780,-2045.875243,0.0001726,2]
[329250550,1718201457790,-2045.875243,0.0001726,2]
[329250552,1718201457801,-6458.08,0.0001726,2]
[329250554,1718201457812,-2045.875243,0.0001726,2]
[329250556,1718201457825,-2045.875243,0.0001726,2]
[329250558,1718201457837,-8650.31,0.0001726,2]
[329250559,1718201457848,-500.0,0.0001726,2]
[329250561,1718201457868,-13863.06,0.0001726,2]
[329250563,1718201457879,-500.0,0.0001726,2]
[329250565,1718201457890,-929.6,0.0001726,2]
[329250567,1718201457913,-500.0,0.0001726,2]
[329250569,1718201457924,-161.117024,0.0001726,2]
[329250571,1718201457935,-161.117024,0.0001726,2]
[329250573,1718201457948,-589.35,0.0001726,2]
[329250574,1718201457962,-1042.65,0.0001726,2]
[329250575,1718201457973,-500.0,0.0001726,2]
[329250576,1718201457984,-161.117024,0.0001726,2]
[329250577,1718201457996,-161.117024,0.0001726,2]
[329250580,1718201458010,-500.0,0.0001726,2]
[329250582,1718201458021,-500.0,0.0001726,2]
[329250584,1718201458042,-500.0,0.0001726,2]
[329250586,1718201458056,-151.0,0.0001726,2]
[329250588,1718201458067,-500.0,0.0001726,2]
[329250590,1718201458079,-500.0,0.0001726,2]
[329250592,1718201458089,-151.0,0.0001726,2]
[329250594,1718201458100,-500.0,0.0001726,2]
[329250597,1718201458111,-151.0,0.0001726,2]
[329250599,1718201458127,-151.0,0.0001726,2]
[329250600,1718201458158,-612.58281593,0.0001726,2]
[329250603,1718201458182,-500.0,0.0001726,2]
[329250604,1718201458201,-6682.41,0.00017532,2]
[329250606,1718201458215,-6682.41,0.00017532,2]
[329250608,1718201458229,-6682.41,0.00017532,2]
[329250610,1718201458243,-6682.41,0.00017532,2]
[329250612,1718201458255,-6682.54699927,0.00017532,2]
[329250614,1718201458287,-806.51,0.00017532,2]
[329250616,1718201458302,-4991.79437,0.00017532,2]
[329250618,1718201458315,-4991.79437,0.00017532,2]
[329250620,1718201458325,-211.99148,0.00017532,2]
[329250622,1718201458337,-211.99148,0.00017532,2]
[329250624,1718201458348,-2045.875243,0.00017532,2]
[329250626,1718201458359,-2045.875243,0.00017532,2]
[329250628,1718201458370,-161.117024,0.00017532,2]
[329250630,1718201458381,-161.117024,0.00017532,2]
[329250632,1718201458391,-151.0,0.00017532,2]
[329250634,1718201458401,-151.0,0.00017532,2]
[329250636,1718201458413,-500.0,0.00017533,2]
[329250638,1718201458424,-500.0,0.00017533,2]
[329250640,1718201458434,-308.79973956,0.00017533,2]
[329250643,1718201458445,-256.94135,0.00017533,2]
[329250644,1718201458455,-256.94135,0.00017533,2]
[329250646,1718201458467,-151.0,0.00017533,2]
[329250648,1718201458478,-151.0,0.00017533,2]
[329250650,1718201458493,-204.046159,0.00017533,2]
[329250652,1718201458503,-288.271004,0.00017533,2]
[329250654,1718201458514,-288.271004,0.00017533,2]
[329250656,1718201458526,-1701.47971,0.00017533,2]
[329250659,1718201458538,-1701.47971,0.00017533,2]
[329250661,1718201458553,-319.4026,0.00017533,2]
[329250663,1718201458569,-319.4026,0.00017533,2]
[329250666,1718201458585,-806.51,0.00017533,2]
[329250668,1718201458598,-806.51,0.00017533,2]
[329250671,1718201458612,-806.51,0.00017533,2]
[329250673,1718201458626,-806.51,0.00017533,2]
[329250675,1718201458641,-806.51940754,0.00017533,2]
[329250678,1718201458656,-500.0,0.00017534,2]
[329250680,1718201458669,-500.0,0.00017534,2]
[329250683,1718201458685,-500.0,0.00017534,2]
[329250685,1718201458702,-500.0,0.00017534,2]
[329250688,1718201458717,-500.0,0.00017534,2]
[329250690,1718201458734,-554.63,0.00017534,4]
[329250692,1718201458747,-500.0,0.00017534,2]
[329250694,1718201458776,-151.0,0.00017534,2]
[329250696,1718201458790,-250.0,0.00017534,2]
[329250699,1718201458805,-500.0,0.00017534,2]
[329250700,1718201458818,-521.8,0.00017534,2]
[329250702,1718201458836,-500.0,0.00017534,2]
[329250704,1718201458850,-500.0,0.00017534,2]
[329250707,1718201458871,-555.158736,0.00017534,2]
[329250709,1718201458887,-500.0,0.00017534,2]
[329250711,1718201458903,-555.158736,0.00017534,2]
[329250713,1718201458918,-492.54718402,0.00017534,2]
[329250715,1718201458934,-500.0,0.00017534,2]
[329250718,1718201458950,-1227.917234,0.00017534,2]
[329250720,1718201458961,-1227.917234,0.00017534,2]
[329250722,1718201458974,-500.0,0.00017534,2]
[329250724,1718201458986,-901.64,0.00017534,2]
[329250726,1718201459000,-176.5077,0.00017534,2]
[329250729,1718201459016,-176.5077,0.00017534,2]
[329250731,1718201459037,-542.58,0.00017534,2]
[329250733,1718201459050,-1227.917234,0.00017534,2]
[329250735,1718201459063,-1227.917234,0.00017534,2]
[329250737,1718201459076,-176.5077,0.00017534,2]
[329250739,1718201459089,-176.5077,0.00017534,2]
[329250741,1718201459103,-549.95,0.00017534,2]
[329250743,1718201459119,-451.73723756,0.00017534,2]
[329250746,1718201459162,-178.57054375,0.00017534,2]
[329250748,1718201459180,-762.56,0.00017534,2]
[329250750,1718201459204,-500.0,0.00017534,2]
[329250752,1718201459220,-500.0,0.00017534,2]
[329250754,1718201459245,-500.0,0.00017534,2]
[329250756,1718201459264,-500.0,0.00017534,2]
[329250758,1718201459281,-500.0,0.00017534,2]
[329250760,1718201459297,-151.0,0.00017534,2]
[329250761,1718201459313,-151.0,0.00017534,2]
[329250763,1718201459330,-500.0,0.00017534,2]
[329250765,1718201459344,-500.0,0.00017534,2]
[329250767,1718201459362,-256.94135,0.00017534,2]
[329250769,1718201459376,-256.94135,0.00017534,2]
[329250770,1718201459394,-500.0,0.00017534,2]
[329250771,1718201459408,-636.0,0.00017534,2]
[329250772,1718201459425,-500.0,0.00017534,2]
[329250773,1718201459438,-151.0,0.00017534,2]
[329250774,1718201459451,-500.0,0.00017534,2]
[329250775,1718201459463,-205.494387,0.00017534,2]
[329250776,1718201459476,-754.42,0.00017534,2]
[329250777,1718201459497,-500.0,0.00017534,2]
[329250778,1718201459524,-204.046159,0.00017534,2]
[329250779,1718201459538,-241.68,0.00017534,2]
[329250780,1718201459557,-288.271004,0.00017534,2]
[329250781,1718201459579,-576.65,0.00017534,2]
[329250782,1718201459594,-288.271004,0.00017534,2]
[329250783,1718201459610,-581.67,0.00017534,2]
[329250784,1718201459623,-500.0,0.00017534,2]
[329250785,1718201459635,-1701.47971,0.00017534,2]
[329250786,1718201459648,-1048.66,0.00017534,2]
[329250788,1718201459661,-1701.47971,0.00017534,2]
[329250790,1718201459682,-449.0730593,0.00017534,2]
[329250792,1718201459695,-500.0,0.00017534,2]
[329250794,1718201459714,-319.4026,0.00017534,2]
[329250797,1718201459731,-922.1,0.00017534,2]
[329250799,1718201459759,-319.4026,0.00017534,2]
[329250801,1718201459773,-1158.98,0.00017534,2]
[329250803,1718201459789,-564.8,0.00017534,2]
[329250806,1718201459808,-211.100469,0.00017534,2]
[329250808,1718201459827,-211.100469,0.00017534,2]
[329250810,1718201459845,-211.100469,0.00017534,2]
[329250812,1718201459858,-211.100469,0.00017534,2]
[329250814,1718201459875,-759.205445,0.00017534,2]
[329250816,1718201459891,-759.205445,0.00017534,2]
[329250818,1718201459913,-759.205445,0.00017534,2]